bitfinex-derivatives/quotes_ETHF0:USTF0_20251003
["timestamp","ask_amount","ask_price","bid_price","bid_amount"]
[1759515550607,0.00222959,4489.9,4489.5,1.89114181]
[1759515550814,1.57877959,4489.9,4489.8,1.1465]
[1759515551212,1.57877959,4489.9,4489.8,1.6335]
[1759515551608,0.87597959,4489.9,4489.8,1.6335]
[1759515551911,0.00222959,4489.9,4489.8,0.226]
[1759515552209,0.00222959,4489.9,4489.8,1.8595]
[1759515552406,0.00222959,4489.9,4489.0,1.59631864]
[1759515552407,0.2955,4489.5,4489.0,1.59631864]
[1759515552609,0.40077,4488.6,4488.5,0.292]
[1759515552906,3.28863695,4488.6,4488.5,0.292]
[1759515553312,0.40077,4488.6,4488.5,0.405]
[1759515554516,0.40077,4488.6,4488.5,1.105]
[1759515555119,0.40068,4489.6,4489.5,0.992]
[1759515555620,3.24055383,4489.6,4489.5,0.992]
[1759515556011,0.40068,4489.6,4489.5,0.992]
[1759515557022,0.226,4491.3,4489.6,0.7]
[1759515557221,0.226,4491.3,4489.7,0.226]
[1759515557416,0.40287959,4489.9,4489.8,0.7]
[1759515560021,0.00222959,4489.9,4489.8,0.7]
[1759515562419,0.40058,4490.7,4490.6,0.7]
[1759515562820,3.27940339,4490.7,4490.6,0.7]
[1759515563215,3.28186096,4490.7,4490.6,0.7]
[1759515564123,8.28186096,4490.7,4490.6,0.7]
[1759515564630,8.28186096,4490.7,4490.5,0.292]
[1759515566328,3.28186096,4490.7,4490.5,0.292]
[1759515566829,3.28186096,4490.7,4490.0,1.88912041]
[1759515566830,0.40064,4490.1,4490.0,1.88912041]
[1759515567528,0.40064,4490.1,4490.0,2.37612041]
[1759515568828,0.40064,4490.1,4490.0,3.60112041]
[1759515572633,0.40303757,4490.7,4490.6,1.6074]
[1759515573022,3.24681303,4490.7,4490.6,1.6074]
[1759515574427,0.40303757,4490.7,4490.6,1.6074]
[1759515575329,0.00245757,4490.7,4490.6,1.6074]
[1759515575730,0.00245757,4490.7,4490.6,6.6074]
[1759515576025,0.4192204,4492.7,4492.6,1.6074]
[1759515576228,0.93120654,4492.7,4492.6,1.6074]
[1759515576428,3.84748783,4492.7,4492.6,1.1488]
[1759515576623,3.33550169,4492.7,4492.6,0.6832]
[1759515576832,3.33804068,4492.7,4492.6,0.68598783]
[1759515577922,8.33804068,4492.7,4492.6,0.68598783]
[1759515578122,0.4005,4491.6,4491.0,0.2958]
[1759515578326,0.4005,4491.6,4491.5,1.446]
[1759515579129,0.4005,4491.6,4491.5,1.44761691]
[1759515580134,0.4005,4491.6,4491.5,2.13081691]
[1759515580434,0.40045,4492.2,4492.1,0.6832]
[1759515580936,3.24235707,4492.2,4492.1,0.6832]
[1759515581232,3.24235707,4492.2,4492.1,1.6074]
[1759515582228,3.24235707,4492.2,4492.1,0.6832]
[1759515582423,2.24235707,4492.2,4492.1,0.6832]
[1759515582629,0.4802,4491.8,4491.7,0.6916]
[1759515582827,0.40048,4491.9,4491.7,1.1502]
[1759515584133,0.40048,4491.9,4491.7,1.55069]
[1759515584334,0.88061,4492.6,4492.5,0.7544]
[1759515584533,0.88061,4492.6,4492.5,1.22]
[1759515584837,3.84144537,4492.6,4492.5,1.9032]
[1759515585226,2.96083537,4492.6,4492.5,1.9032]
[1759515585431,0.40041,4492.6,4492.5,2.08266055]
[1759515585638,0.02135939,4492.7,4492.6,1.6074]
[1759515587633,0.01913329,4492.7,4492.6,6.6074]
[1759515587939,0.022,4492.9,4492.8,1.6074]
[1759515588139,0.022,4492.9,4492.8,1.8334]
[1759515588435,0.022,4492.9,4492.8,6.8334]
[1759515588833,0.0242748,4492.9,4492.8,6.8334]
[1759515589037,0.5044748,4492.9,4492.8,1.6074]
[1759515589240,0.4246648,4492.9,4492.8,1.8334]
[1759515589432,0.0242748,4492.9,4492.8,1.6074]
[1759515590039,0.5044748,4492.9,4492.8,1.8334]
[1759515590238,0.0242748,4492.9,4492.8,1.8334]
[1759515590934,0.0242748,4492.9,4492.5,0.2958]
[1759515590935,1.4206748,4492.9,4492.5,0.2958]
[1759515591143,1.3783,4492.7,4492.6,1.2618]
[1759515591441,1.3783,4492.7,4492.6,1.6074]
[1759515591638,0.8806,4492.7,4492.6,1.6074]
[1759515591943,1.3783,4492.7,4492.6,1.8334]
[1759515592742,1.3783,4492.7,4492.6,1.6074]
[1759515592940,1.3783,4492.7,4492.6,0.6832]
[1759515593143,0.4004,4492.7,4492.6,1.8334]
[1759515593642,0.8806,4492.7,4492.6,1.6074]
[1759515593839,0.40046,4492.1,4492.0,1.9032]
[1759515594145,0.88066,4492.1,4492.0,2.1292]
[1759515594837,0.40046,4492.1,4492.0,2.1292]
[1759515595034,0.88066,4492.1,4492.0,2.1292]
[1759515595440,0.88066,4492.1,4492.0,1.9032]
[1759515595635,0.40046,4492.1,4492.0,2.1292]
[1759515596844,0.40046,4492.1,4492.0,1.9032]
[1759515597044,0.88066,4492.1,4492.0,2.1292]
[1759515597246,0.40046,4492.1,4492.0,2.1292]
[1759515597443,0.4802,4492.5,4492.4,0.9242]
[1759515597648,0.4802,4492.5,4492.4,1.6074]
[1759515597848,3.84021451,4492.5,4492.4,1.6074]
[1759515598147,3.34251451,4492.5,4492.4,1.6074]
[1759515598545,3.74293451,4492.5,4492.4,1.6074]
[1759515598746,4.24063451,4492.5,4492.4,1.1488]
[1759515598946,4.24063451,4492.5,4492.4,1.3748]
[1759515600044,3.74293451,4492.5,4492.4,1.8334]
[1759515600245,4.24063451,4492.5,4492.4,1.8334]
[1759515600445,4.24063451,4492.5,4492.4,1.3748]
[1759515600948,0.0242748,4492.9,4492.5,0.979]
[1759515601156,0.0242748,4492.9,4492.8,1.6074]
[1759515601458,0.4246648,4492.9,4492.8,1.6074]
[1759515601749,0.9048648,4492.9,4492.8,1.6074]
[1759515601945,3.85505458,4492.9,4492.5,0.2958]
[1759515602146,0.86407,4492.0,4491.9,1.7016]
[1759515602348,0.86407,4492.0,4491.9,1.8006]
[1759515602549,0.40047,4492.0,4491.9,1.8006]
[1759515602944,1.0252548,4492.9,4491.9,1.8006]
[1759515603144,2.0734648,4492.9,4492.8,1.7016]
[1759515603349,0.0242748,4492.9,4492.8,1.7016]
[1759515604845,0.4246648,4492.9,4492.8,1.7016]
[1759515605656,0.0242748,4492.9,4492.8,1.7016]
[1759515606158,0.0242748,4492.9,4492.8,6.7016]
[1759515606548,0.0242748,4492.9,4492.8,6.9276]
[1759515606953,0.0242748,4492.9,4492.8,1.9276]
[1759515607250,0.7204,4493.7,4492.8,1.9276]
[1759515607251,1.00075,4494.0,4492.8,7.328]
[1759515607456,0.40032,4493.7,4493.6,1.7016]
[1759515607653,0.40032,4493.7,4493.6,1.9276]
[1759515608249,1.00065,4494.4,4493.7,0.7361]
[1759515608460,4.28349182,4494.4,4494.3,1.7016]
[1759515608672,2.55512976,4494.4,4493.5,0.2855]
[1759515608856,1.00085,4493.5,4493.0,0.2855]
[1759515609056,2.04913,4493.5,4493.4,1.7016]
[1759515609260,0.40033,4493.5,4493.4,1.9276]
[1759515609963,0.86393,4493.5,4493.4,1.9276]
[1759515610259,1.32873,4493.5,4493.4,1.9276]
[1759515610465,2.04913,4493.5,4493.4,1.9276]
[1759515610662,0.7204,4493.4,4491.5,1.88293653]
[1759515610863,2.04925,4492.2,4492.1,0.9655]
[1759515611054,2.04925,4492.2,4492.1,1.1915]
[1759515611259,1.5845,4491.6,4491.5,0.46331691]
[1759515611463,2.0493,4491.6,4491.5,0.22761691]
[1759515611660,2.0493,4491.6,4491.5,0.00161691]
[1759515611856,4.56989133,4491.6,4491.5,0.00161691]
[1759515612063,3.84949133,4491.6,4491.5,0.00161691]
[1759515612267,1.62491455,4491.6,4491.5,0.00161691]
[1759515612966,1.62491455,4491.6,4491.5,0.22761691]
[1759515613367,1.62491455,4491.6,4491.5,0.00161691]
[1759515614169,1.1209,4491.6,4491.5,0.00161691]
[1759515614472,2.0493,4491.6,4491.5,0.46331691]
[1759515614759,2.0493,4491.6,4491.5,0.00161691]
[1759515615164,5.0038827,4491.6,4491.5,0.00161691]
[1759515615366,5.5074444,4491.6,4491.5,0.00161691]
[1759515615562,5.5074444,4491.6,4490.3,0.7361]
[1759515615563,0.4636,4490.9,4490.8,0.026]
[1759515615865,2.04937,4490.9,4490.8,0.026]
[1759515616363,2.04937,4490.9,4490.8,0.4877]
[1759515616667,2.05131992,4490.9,4490.8,0.99415892]
[1759515616867,0.00194992,4490.9,4490.8,1.73025892]
[1759515617063,0.000333,4490.9,4490.8,6.73025892]
[1759515618072,0.7204,4492.0,4491.1,1.00137]
[1759515618370,0.7204,4492.4,4491.8,0.7361]
[1759515618568,1.12087,4492.0,4491.9,0.226]
[1759515618770,1.41507,4492.0,4491.9,0.226]
[1759515618967,0.00167876,4492.0,4491.9,0.9621]
[1759515619367,0.72207876,4492.0,4491.9,0.9621]
[1759515619565,0.00167876,4492.0,4491.9,0.9621]
[1759515619769,0.00167876,4492.0,4491.9,0.7361]
[1759515619961,0.40052,4491.4,4491.1,34.729]
[1759515620274,0.40051,4491.6,4491.5,0.2855]
[1759515620471,0.40051,4491.6,4491.5,1.0216]
[1759515620669,0.40055,4491.2,4491.1,0.7361]
[1759515620863,0.40055,4491.2,4491.1,0.9621]
[1759515621767,1.12095,4491.2,4491.1,0.9621]
[1759515622472,0.40055,4491.2,4491.1,0.9621]
[1759515622668,1.00127,4491.6,4490.8,0.00265892]
[1759515622669,0.7204,4491.1,4490.8,0.73875892]
[1759515622974,1.12097,4490.9,4490.8,0.00265892]
[1759515623175,1.12097,4490.9,4490.8,0.22865892]
[1759515623775,1.12097,4490.9,4490.8,0.00265892]
[1759515623976,1.12097,4490.9,4490.8,0.22865892]
[1759515624277,0.40057,4490.9,4490.8,0.96475892]
[1759515624971,0.40055,4491.1,4491.0,0.2855]
[1759515625171,0.7204,4491.9,4491.0,0.5115]
[1759515625373,1.7216,4491.9,4491.0,0.5115]
[1759515625573,1.7216,4491.9,4491.3,1.13663]
[1759515625772,1.00285876,4492.0,4491.4,0.7361]
[1759515626069,0.00167876,4492.0,4491.5,0.3973]
[1759515626280,0.40054,4491.2,4491.0,0.7361]
[1759515626472,0.7204,4491.1,4491.0,0.7361]
[1759515626674,0.40054,4491.2,4491.0,0.7361]
[1759515626675,0.7204,4491.6,4491.1,1.13664]
[1759515626974,0.40054,4491.2,4491.1,0.6993]
[1759515627276,1.12414,4491.2,4491.1,0.6993]
[1759515627475,1.12414,4491.2,4491.1,0.9253]
[1759515627876,1.12414,4491.2,4491.1,0.226]
[1759515628477,0.7236,4490.9,4490.8,0.00265892]
[1759515628875,0.7236,4490.9,4490.8,0.22865892]
[1759515629678,0.7236,4490.9,4490.8,0.00265892]
[1759515629873,0.7236,4490.9,4490.8,0.22865892]
[1759515630272,0.7236,4490.9,4490.8,0.00265892]
[1759515630476,0.7236,4490.9,4490.8,0.22865892]
[1759515631783,0.7236,4490.9,4490.8,0.92795892]
[1759515631989,0.40056,4491.0,4490.8,0.22865892]
[1759515632291,0.6814,4490.9,4490.8,8.92e-06]
[1759515632494,0.4007,4489.4,4489.3,1.59581962]
[1759515632791,0.40069,4489.6,4489.5,0.7232]
[1759515633180,0.40069,4489.6,4489.3,0.158]
[1759515633181,1.0821,4489.4,4489.3,0.33535504]
[1759515633387,1.0821,4489.4,4489.3,0.16072748]
[1759515633588,1.0821,4489.4,4489.3,0.00272748]
[1759515633786,1.27804,4490.0,4489.3,0.95192748]
[1759515633989,0.4007,4489.4,4489.3,0.95192748]
[1759515634984,1.0821,4489.4,4489.3,7.48e-06]
[1759515636287,1.27826,4489.0,4487.9,0.02228238]
[1759515636595,1.35862,4488.0,4487.9,0.02228238]
[1759515636791,1.35862,4488.0,4487.9,0.24828238]
[1759515637289,1.36125051,4488.0,4487.9,0.24995476]
[1759515637692,1.08485051,4488.0,4487.9,0.24995476]
[1759515637984,1.08485051,4488.0,4487.9,0.02395476]
[1759515638192,1.36125051,4488.0,4487.9,0.24995476]
[1759515640388,0.00263051,4488.0,4487.9,0.97315476]
[1759515640588,0.00263051,4488.0,4487.9,5.97315476]
[1759515641587,0.68403051,4488.0,4487.9,5.24995476]
[1759515641783,0.96043051,4488.0,4487.9,0.24995476]
[1759515642594,0.00263051,4488.0,4487.9,0.97315476]
[1759515643095,0.00263051,4488.0,4487.9,5.97315476]
[1759515643286,1.35854,4489.0,4488.4,0.40078]
[1759515643287,0.6814,4489.0,4488.4,0.40078]
[1759515643490,0.6814,4489.0,4488.6,0.7232]
[1759515643789,0.6814,4488.8,4488.6,0.7232]
[1759515643993,1.00165,4489.9,4488.5,0.226]
[1759515644194,0.6814,4489.4,4488.6,1.12397]
[1759515644392,0.6814,4489.4,4488.5,0.226]
[1759515644393,0.00250922,4489.5,4489.4,0.7232]
[1759515644597,0.00250922,4489.5,4489.4,0.9052]
[1759515644889,0.68390922,4489.5,4489.4,0.9052]
[1759515645396,0.00250922,4489.5,4489.4,5.9052]
[1759515645596,0.96030922,4489.5,4489.4,0.182]
[1759515645988,1.08459922,4489.5,4489.4,0.182]
[1759515646192,1.08459922,4489.5,4489.4,0.226]
[1759515646193,0.67959922,4489.5,4489.4,0.226]
[1759515646383,0.68390922,4489.5,4489.4,0.226]
[1759515646793,0.68390922,4489.5,4489.4,0.9492]
[1759515647389,0.68390922,4489.5,4489.4,0.7232]
[1759515647694,0.00250922,4489.5,4489.4,0.8782]
[1759515647892,0.68390922,4489.5,4489.4,0.155]
[1759515648096,1.08213,4489.0,4488.5,0.2855]
[1759515648297,0.6814,4488.9,4488.8,0.7232]
[1759515648490,0.40076,4488.7,4488.5,0.7232]
[1759515648792,0.40074,4489.0,4488.7,0.7232]
[1759515648998,0.40074,4489.0,4488.8,0.7232]
[1759515649190,0.40075,4488.9,4488.6,0.226]
[1759515649387,1.08215,4488.9,4488.7,0.7232]
[1759515649793,0.6814,4488.9,4488.7,0.7232]
[1759515649989,0.6814,4488.9,4488.7,1.12396]
[1759515650200,0.6814,4488.9,4488.6,0.226]
[1759515650499,0.40074,4489.0,4488.7,0.9492]
[1759515650792,0.6814,4488.8,4488.7,0.9492]
[1759515651094,1.08215,4488.8,4488.7,0.9492]
[1759515651298,0.6814,4488.9,4488.3,34.746]
[1759515651499,0.6814,4488.9,4488.4,0.226]
[1759515651991,0.6814,4488.5,4488.4,0.226]
[1759515652196,0.9578,4488.5,4488.4,0.226]
[1759515652396,0.6814,4488.2,4488.1,0.7232]
[1759515652591,0.6814,4488.2,4488.1,0.9492]
[1759515653296,0.40081,4488.2,4487.9,1.14798476]
[1759515653597,0.6814,4488.1,4488.0,0.9492]
[1759515653792,0.6814,4488.4,4488.3,1.124]
[1759515653997,0.6814,4488.4,4488.3,1.35]
[1759515654299,1.08217,4488.6,4488.4,0.7232]
[1759515654699,1.08217,4488.6,4488.4,1.12399]
[1759515655091,1.08217,4488.6,4488.4,0.7232]
[1759515655297,0.6814,4488.9,4488.3,0.226]
[1759515655494,0.2764,4489.0,4488.3,0.226]
[1759515655793,1.08217,4488.6,4488.4,0.40078]
[1759515656095,0.6814,4489.2,4488.5,0.2855]
[1759515656295,0.40077,4488.6,4488.3,0.4008]
[1759515656600,0.6814,4488.6,4488.4,36.09699]
[1759515656795,0.6814,4488.6,4488.5,1.7014]
[1759515656992,0.6814,4488.6,4488.1,0.7232]
[1759515656993,2.04327,4488.6,4488.1,0.7232]
[1759515657192,0.40077,4488.7,4488.4,0.9782]
[1759515657398,1.169,4488.8,4488.7,0.90206]
[1759515657596,1.169,4489.2,4489.1,1.7014]
[1759515657900,1.56972,4489.2,4489.1,1.9274]
[1759515658097,1.56972,4489.2,4489.1,1.2042]
[1759515658303,2.04322,4489.2,4489.1,0.7273]
[1759515658498,2.04322,4489.2,4489.1,0.226]
[1759515658691,1.1549,4489.2,4488.5,1.12398]
[1759515658897,1.56976,4488.7,4488.6,0.7273]
[1759515659206,0.4876,4488.4,4488.3,0.40079]
[1759515659402,0.6814,4488.3,4488.2,35.872]
[1759515659598,0.6814,4488.3,4488.2,36.098]
[1759515659798,0.6814,4488.7,4488.6,1.37897]
[1759515659999,0.6814,4488.7,4488.6,2.32817]
[1759515660200,1.169,4488.7,4488.6,1.9274]
[1759515660401,1.6425,4489.4,4489.3,0.5013]
[1759515660601,2.0432,4489.4,4489.3,0.7273]
[1759515660801,2.0432,4489.4,4489.3,0.226]
[1759515661010,0.00250922,4489.5,4489.4,0.7232]
[1759515661506,0.6814,4490.3,4490.2,0.7232]
[1759515661702,0.6814,4490.3,4490.2,0.9492]
[1759515662107,0.6848,4491.1,4490.3,0.7457]
[1759515662307,0.52754752,4491.1,4490.3,0.7457]
[1759515662506,0.53024956,4491.1,4490.3,0.7457]
[1759515662700,0.93079956,4491.1,4490.5,0.4006]
[1759515662901,0.40056,4491.0,4490.5,0.4006]
[1759515663103,0.00270204,4491.1,4490.3,0.7457]
[1759515663302,0.00270204,4491.1,4490.2,0.40063]
[1759515663303,0.2942,4491.0,4489.8,0.40066]
[1759515663509,1.00145,4490.8,4489.9,34.973]
[1759515663904,0.40062,4490.3,4489.9,34.973]
[1759515664104,0.2942,4491.0,4490.0,0.7457]
[1759515664303,0.2942,4491.0,4490.0,1.14634]
[1759515664810,0.69476,4491.0,4490.5,0.4006]
[1759515665106,0.2942,4491.0,4490.6,0.226]
[1759515665304,0.6848,4490.7,4490.6,0.9717]
[1759515665510,0.00270204,4491.1,4490.7,0.7457]
[1759515665709,0.68750204,4491.1,4490.7,0.7457]
[1759515665902,0.6848,4491.0,4490.7,0.18094536]
[1759515666104,0.40058,4490.8,4490.6,0.226]
[1759515666303,0.40059,4490.7,4490.3,0.40062]
[1759515666511,0.6848,4490.6,4490.4,0.62661]
[1759515666706,0.6848,4490.6,4490.5,0.7457]
[1759515667310,0.6848,4490.6,4490.5,0.92492224]
[1759515667611,0.6848,4490.6,4490.5,0.17922224]
[1759515667808,0.6848,4490.6,4490.5,0.226]
[1759515668710,0.6848,4490.6,4490.5,0.40291291]
[1759515668910,0.6848,4490.6,4490.5,1.14861291]
[1759515669110,0.6848,4490.6,4490.5,0.40291291]
[1759515669303,0.6848,4490.6,4490.5,2.07371291]
[1759515669613,0.473,4491.0,4490.9,1.6708]
[1759515669914,1.1578,4491.0,4490.9,1.8968]
[1759515670612,0.00270204,4491.1,4491.0,2.07136]
[1759515670812,1.16050204,4491.1,4491.0,1.6708]
[1759515671014,1.64840204,4491.1,4491.0,0.9251]
[1759515671412,0.00270204,4491.1,4491.0,1.6708]
[1759515671813,1.08260796,4491.6,4491.0,0.2832]
[1759515672011,0.68209796,4491.6,4491.1,0.7457]
[1759515672209,0.40051,4491.4,4491.1,0.7457]
[1759515672421,0.4005,4491.6,4490.9,0.226]
[1759515672714,0.00228101,4491.6,4491.0,0.7457]
[1759515672906,0.69461,4492.5,4491.6,1.00124]
[1759515673106,0.2942,4492.5,4492.1,1.14614]
[1759515673313,0.2942,4492.5,4492.2,0.62643]
[1759515673506,0.40042,4492.4,4492.2,0.226]
[1759515673711,0.6848,4492.3,4492.2,0.226]
[1759515673912,0.68650584,4492.3,4492.2,0.226]
[1759515674313,1.64740584,4492.3,4492.2,0.226]
[1759515674513,2.04783584,4492.3,4492.2,0.226]
[1759515675112,2.04783584,4492.3,4492.2,0.6889]
[1759515675514,1.15950584,4492.3,4492.2,1.8968]
[1759515675716,0.00170584,4492.3,4492.2,1.8968]
[1759515675912,0.6848,4492.2,4491.4,0.7457]
[1759515676213,0.6848,4492.2,4492.0,0.7457]
[1759515676414,0.00170584,4492.3,4492.2,1.6708]
[1759515676814,1.15950584,4492.3,4492.2,1.6708]
[1759515678119,1.00055,4494.4,4492.4,1.00097]
[1759515678419,0.2942,4495.0,4493.6,0.7457]
[1759515678622,0.40026,4493.9,4493.7,0.13]
[1759515678917,0.40029,4493.5,4493.4,0.7457]
[1759515679121,0.40185013,4493.5,4493.4,0.9717]
[1759515679717,0.00156013,4493.5,4493.4,0.9717]
[1759515679923,0.00156013,4493.5,4493.0,0.2832]
[1759515680225,0.00156013,4493.5,4493.2,1.14601]
[1759515680431,0.00156013,4493.5,4493.3,0.7457]
[1759515680717,0.00156013,4493.5,4493.4,0.7457]
[1759515682322,0.40025,4494.0,4493.6,0.7457]
[1759515682519,0.6848,4494.5,4493.8,0.7457]
[1759515682826,0.40024,4494.1,4494.0,1.0289]
[1759515683026,0.40023,4494.3,4494.0,1.2549]
[1759515683322,0.00164165,4494.3,4494.1,0.7457]
[1759515683529,0.00164165,4494.3,4494.1,0.74740396]
[1759515683921,0.40186165,4494.3,4494.1,0.74740396]
[1759515684121,0.40186165,4494.3,4494.2,0.7457]
[1759515685019,0.00164165,4494.3,4494.2,0.7457]
[1759515686821,0.00164165,4494.3,4494.2,1.68]
[1759515687522,0.7284,4495.7,4495.5,0.4475]
[1759515687726,2.06551,4495.6,4495.5,1.1122]
[1759515687929,1.33711,4495.6,4495.5,1.7556]
[1759515688231,0.7284,4496.6,4495.6,0.6647]
[1759515688531,0.40007,4496.1,4496.0,0.2828]
[1759515688730,0.40007,4496.1,4496.0,0.9475]
[1759515688928,0.40004,4496.3,4496.0,0.6647]
[1759515689132,0.40004,4496.3,4495.6,0.17846769]
[1759515689133,0.7284,4496.2,4496.1,0.6647]
[1759515689334,0.7284,4496.2,4496.1,0.8907]
[1759515690023,0.7284,4496.2,4496.1,0.226]
[1759515690227,0.7284,4496.3,4495.6,0.6647]
[1759515690432,0.7284,4495.9,4495.7,0.124]
[1759515690639,1.12848,4495.9,4495.8,0.124]
[1759515690934,0.2657,4496.0,4495.0,0.2828]
[1759515690935,0.40015,4495.1,4495.0,35.3777]
[1759515691136,0.7284,4495.4,4495.0,35.11304815]
[1759515691338,0.40013,4495.3,4495.1,0.6647]
[1759515691532,0.40013,4495.3,4495.0,35.39584815]
[1759515691729,0.40013,4495.3,4495.1,0.6647]
[1759515692033,0.40013,4495.3,4495.2,0.6647]
[1759515692337,1.13003,4495.3,4495.2,0.6647]
[1759515692530,1.13005,4495.1,4495.0,0.17404815]
[1759515692726,1.13005,4495.1,4495.0,0.226]
[1759515693136,0.7299,4495.1,4495.0,0.40082623]
[1759515693336,0.7299,4495.1,4495.0,1.07592623]
[1759515694032,0.7299,4495.1,4495.0,0.9011]
[1759515694434,0.4494,4495.1,4495.0,1.8359]
[1759515694734,1.6458,4495.1,4495.0,0.6736]
[1759515695142,1.6458,4495.1,4495.0,0.84837301]
[1759515695449,1.6458,4495.1,4495.0,2.01067301]
[1759515695640,0.9159,4495.1,4495.0,2.01067301]
[1759515695838,0.40015,4495.2,4495.0,2.01067301]
[1759515695839,2.04595,4495.2,4495.1,1.6099]
[1759515696343,0.84955,4495.2,4495.1,1.6099]
[1759515696535,0.84957,4494.9,4494.8,1.6099]
[1759515696742,0.84957,4494.9,4494.8,1.8359]
[1759515697038,0.4494,4494.9,4494.8,1.1608]
[1759515697242,0.4494,4494.9,4494.8,1.8359]
[1759515697548,1.6458,4494.9,4494.8,0.6736]
[1759515697738,1.6458,4494.7,4494.6,0.17486172]
[1759515697942,1.6458,4494.7,4494.6,1.7279]
[1759515698240,1.6458,4494.7,4494.6,1.2407]
[1759515698738,1.6458,4494.7,4494.6,1.90233737]
[1759515698946,0.9159,4494.7,4494.6,1.90233737]
[1759515699446,1.6458,4494.7,4494.6,1.90233737]
[1759515700042,0.9159,4494.7,4494.6,1.90233737]
[1759515701044,0.4494,4495.1,4495.0,0.9348]
[1759515701248,0.4494,4495.1,4495.0,1.8359]
[1759515701449,1.6458,4495.1,4495.0,0.226]
[1759515701847,0.9159,4494.7,4494.6,0.62203737]
[1759515702051,2.04599,4494.7,4494.6,1.52313737]
[1759515702247,1.31609,4494.7,4494.6,2.01033737]
[1759515702439,2.04592,4495.4,4495.3,1.1227]
[1759515702643,2.04592,4495.4,4495.3,1.8359]
[1759515703244,1.31602,4495.4,4495.3,1.8359]
[1759515703746,1.31602,4495.4,4494.6,0.17443737]
[1759515703747,1.6458,4494.7,4494.6,0.17443737]
[1759515703947,1.6458,4494.7,4494.6,1.3487]
[1759515704152,1.6458,4494.7,4494.6,1.5264612]
[1759515704352,1.6458,4494.7,4494.6,2.0136612]
[1759515704655,1.6458,4494.7,4494.6,1.8359]
[1759515704854,0.9159,4494.7,4494.6,1.8359]
[1759515706053,1.31609,4494.6,4494.5,0.17999719]
[1759515706246,1.31609,4494.6,4494.5,1.52869719]
[1759515706247,2.04599,4494.6,4494.5,1.52869719]
[1759515706449,0.84956,4495.0,4494.9,1.1623]
[1759515706653,2.04596,4495.0,4494.9,1.8359]
[1759515706952,2.04596,4495.0,4494.9,1.3487]
[1759515707157,2.04596,4495.0,4494.9,0.6736]
[1759515707559,2.04596,4495.0,4494.9,1.3487]
[1759515707752,2.04596,4495.0,4494.9,1.8359]
[1759515707954,0.84956,4495.0,4494.9,1.8359]
[1759515708156,0.4494,4495.0,4494.9,2.23607]
[1759515708451,1.13003,4495.4,4495.1,0.40015]
[1759515708661,2.04593,4495.4,4495.3,1.6099]
[1759515708850,2.54436861,4495.4,4495.3,1.8359]
[1759515709050,2.04593,4495.4,4495.3,0.226]
[1759515709255,2.54245393,4495.4,4495.3,0.226]
[1759515710554,2.14232393,4495.4,4495.3,1.8359]
[1759515710961,2.14232393,4495.4,4495.3,1.6099]
[1759515711153,2.14232393,4495.4,4495.3,1.8359]
[1759515711456,2.14232393,4495.4,4495.3,0.226]
[1759515712259,2.54244393,4495.4,4495.3,0.6736]
[1759515712862,2.54244393,4495.4,4495.3,1.6099]
[1759515713066,1.81254393,4495.4,4495.3,1.8349]
[1759515713255,1.31602,4495.4,4495.3,1.8349]
[1759515713560,2.04592,4495.4,4495.3,1.8349]
[1759515713762,2.04592,4495.4,4495.3,0.225]
[1759515713958,0.9159,4494.7,4494.6,1.1227]
[1759515714162,2.04599,4494.7,4494.6,1.1227]
[1759515714354,1.00031,4495.4,4494.1,1.61160396]
[1759515714355,1.31613,4494.2,4494.1,1.61160396]
[1759515714555,1.31613,4494.2,4494.1,1.83660396]
[1759515714859,2.04603,4494.2,4494.1,1.83660396]
[1759515715059,2.04603,4494.2,4494.1,1.61160396]
[1759515715361,0.84962,4494.3,4494.2,1.6099]
[1759515715555,0.84962,4494.3,4494.1,0.22670396]
[1759515715556,1.57945,4495.1,4495.0,0.4476]
[1759515715763,2.04595,4495.1,4495.0,1.3477]
[1759515715960,1.31605,4495.1,4495.0,2.1039]
[1759515716160,0.40014,4495.2,4495.1,1.6099]
[1759515716359,1.31609,4494.7,4494.6,1.6099]
[1759515716660,1.31609,4494.7,4494.6,1.8349]
[1759515719161,0.40017,4494.9,4494.6,1.55999]
[1759515719361,0.40017,4494.9,4494.8,1.6099]
[1759515720165,0.40014,4495.2,4494.9,0.6751]
[1759515720361,1.31604,4495.3,4495.2,1.6099]
[1759515720562,0.9159,4495.3,4495.2,1.6099]
[1759515721264,1.6458,4495.3,4495.2,1.6099]
[1759515722057,0.40008,4495.9,4495.7,0.40009]
[1759515722264,0.9116,4495.8,4495.7,1.563]
[1759515722564,0.85656,4496.1,4496.0,1.1835]
[1759515722759,0.85656,4496.1,4496.0,2.0722]
[1759515723066,2.00506,4496.1,4496.0,2.0722]
[1759515723464,2.00506,4496.1,4496.0,0.6712]
[1759515723662,2.00506,4496.1,4496.0,0.225]
[1759515724371,0.4565,4495.8,4495.7,1.563]
[1759515724562,0.9116,4495.8,4495.7,1.788]
[1759515724764,1.605,4495.8,4495.7,1.788]
[1759515725267,1.605,4495.8,4495.7,1.563]
[1759515725466,1.605,4495.8,4495.7,1.788]
[1759515725860,1.605,4495.8,4495.7,1.563]
[1759515726064,0.9116,4495.8,4495.7,1.788]
[1759515726771,1.605,4495.8,4495.7,1.788]
[1759515726974,0.9116,4495.8,4495.7,1.788]
[1759515727165,0.6934,4496.2,4495.9,0.40008]
[1759515727470,0.6934,4496.2,4495.7,0.225]
[1759515727471,0.4565,4496.2,4496.1,1.563]
[1759515727671,0.4565,4496.2,4496.1,1.788]
[1759515727872,0.00254317,4496.6,4496.1,1.788]
[1759515727873,0.40003,4496.5,4496.4,0.6637]
[1759515728062,0.85653,4496.5,4496.4,1.788]